[Event "*** MasterClass Titled Tuesday Blitz"]
[Site "Chess.com"]
[Date "2017.07.04"]
[Round "2"]
[White "abubakrtagelsir"]
[Black "kharov2001"]
[Result "1-0"]
[WhiteElo "2166"]
[BlackElo "2033"]
[TimeControl "180+2"]
[EndTime "13:21:49 PDT"]
[Termination "abubakrtagelsir won by resignation"]

1. e4 {[%clk 0:02:59.2]} 1... e5 {[%clk 0:02:59.7]} 2. Nf3 {[%clk 0:02:57.9]}
2... Nc6 {[%clk 0:03:00.8]} 3. d4 {[%clk 0:02:58.7]} 3... exd4 {[%clk
0:03:01.2]} 4. Bc4 {[%clk 0:02:59.3]} 4... Nf6 {[%clk 0:02:52.4]} 5. e5 {[%clk
0:02:52.2]} 5... d5 {[%clk 0:02:51.9]} 6. Bb5 {[%clk 0:02:52.1]} 6... Ne4 {[%clk
0:02:52.9]} 7. Nxd4 {[%clk 0:02:45.7]} 7... Bc5 {[%clk 0:02:52.9]} 8. Be3 {[%clk
0:02:40.6]} 8... O-O {[%clk 0:02:51.6]} 9. Nxc6 {[%clk 0:02:39.2]} 9... bxc6
{[%clk 0:02:52]} 10. Bxc5 {[%clk 0:02:39.8]} 10... Nxc5 {[%clk 0:02:53.4]} 11.
Bxc6 {[%clk 0:02:40.4]} 11... Rb8 {[%clk 0:02:27.6]} 12. Qxd5 {[%clk 0:02:39.7]}
12... Qxd5 {[%clk 0:02:16.4]} 13. Bxd5 {[%clk 0:02:38.2]} 13... Rxb2 {[%clk
0:02:17.1]} 14. O-O {[%clk 0:02:09.9]} 14... Rxc2 {[%clk 0:02:12.6]} 15. Na3
{[%clk 0:02:08.8]} 15... Rd2 {[%clk 0:02:13.7]} 16. Bf3 {[%clk 0:02:05.5]} 16...
Nd3 {[%clk 0:02:07]} 17. Nc4 {[%clk 0:01:39.3]} 17... Rc2 {[%clk 0:02:05.3]} 18.
Be4 {[%clk 0:01:27.9]} 18... Rxc4 {[%clk 0:02:02.8]} 19. Bxd3 {[%clk 0:01:27.4]}
19... Rc3 {[%clk 0:02:01.9]} 20. Rfd1 {[%clk 0:01:24.8]} 20... Be6 {[%clk
0:01:59]} 21. a4 {[%clk 0:01:21]} 21... Rd8 {[%clk 0:01:57.3]} 22. Bxh7+ {[%clk
0:01:20.4]} 22... Kxh7 {[%clk 0:01:56.6]} 23. Rxd8 {[%clk 0:01:20.8]} 23... c5
{[%clk 0:01:49.3]} 24. Ra8 {[%clk 0:01:16.6]} 24... Rd3 {[%clk 0:01:36]} 25.
Rxa7 {[%clk 0:01:14.9]} 25... c4 {[%clk 0:01:34.9]} 26. Rc7 {[%clk 0:01:13.2]}
26... Rd4 {[%clk 0:01:25.2]} 27. a5 {[%clk 0:01:10.1]} 27... Re4 {[%clk
0:01:20.4]} 28. Rc5 {[%clk 0:01:03.4]} 28... c3 {[%clk 0:01:18.2]} 29. a6 {[%clk
0:01:01.2]} 1-0

[Event "*** MasterClass Titled Tuesday Blitz"]
[Site "Chess.com"]
[Date "2017.07.04"]
[Round "2"]
[White "Blitzstream"]
[Black "nihalsarin"]
[Result "0-1"]
[WhiteElo "2444"]
[BlackElo "2635"]
[TimeControl "180+2"]
[EndTime "13:21:58 PDT"]
[Termination "nihalsarin won by checkmate"]

1. d4 {[%clk 0:03:01.9]} 1... d5 {[%clk 0:03:00.7]} 2. Nc3 {[%clk 0:03:00.7]}
2... Nf6 {[%clk 0:03:00.4]} 3. Bf4 {[%clk 0:03:01.3]} 3... a6 {[%clk 0:02:59.3]}
4. f3 {[%clk 0:02:50.4]} 4... c5 {[%clk 0:02:59.9]} 5. e3 {[%clk 0:02:30.7]}
5... Nc6 {[%clk 0:02:58.9]} 6. Qd2 {[%clk 0:02:19.2]} 6... cxd4 {[%clk
0:02:57.1]} 7. exd4 {[%clk 0:02:20]} 7... Bf5 {[%clk 0:02:58]} 8. g4 {[%clk
0:02:19]} 8... Bg6 {[%clk 0:02:58.5]} 9. h4 {[%clk 0:02:19.7]} 9... h5 {[%clk
0:02:56.9]} 10. g5 {[%clk 0:02:20.1]} 10... Ng8 {[%clk 0:02:57.5]} 11. Nh3
{[%clk 0:02:12.1]} 11... e6 {[%clk 0:02:54.4]} 12. a3 {[%clk 0:02:09]} 12...
Nge7 {[%clk 0:02:54]} 13. Bg3 {[%clk 0:02:04.6]} 13... Rc8 {[%clk 0:02:54.4]}
14. Nf4 {[%clk 0:02:01.9]} 14... Bf5 {[%clk 0:02:55.2]} 15. O-O-O {[%clk
0:01:39.3]} 15... b5 {[%clk 0:02:37.4]} 16. Bd3 {[%clk 0:01:25.1]} 16... g6
{[%clk 0:02:30.3]} 17. Rhe1 {[%clk 0:01:16.3]} 17... Nxd4 {[%clk 0:02:26.7]} 18.
Bxf5 {[%clk 0:01:13.8]} 18... Ndxf5 {[%clk 0:02:20.9]} 19. Bf2 {[%clk
0:01:13.6]} 19... Bg7 {[%clk 0:02:20.4]} 20. Nce2 {[%clk 0:00:59.4]} 20... O-O
{[%clk 0:02:19.4]} 21. Kb1 {[%clk 0:00:59.7]} 21... Nc6 {[%clk 0:02:17]} 22. Nd3
{[%clk 0:00:58.8]} 22... Na5 {[%clk 0:02:13]} 23. b3 {[%clk 0:00:55.6]} 23...
Nc4 {[%clk 0:01:44.8]} 24. Qc1 {[%clk 0:00:50.4]} 24... Qd6 {[%clk 0:01:31.7]}
25. Ka2 {[%clk 0:00:50.8]} 25... Nxa3 {[%clk 0:01:30.9]} 26. Rd2 {[%clk
0:00:38.5]} 26... Nc4 {[%clk 0:01:22.1]} 27. bxc4 {[%clk 0:00:34.9]} 27... bxc4
{[%clk 0:01:21.9]} 28. Ndf4 {[%clk 0:00:27.4]} 28... Qb4 {[%clk 0:01:16.3]} 29.
c3 {[%clk 0:00:26.9]} 29... Bxc3 {[%clk 0:01:15]} 30. Qxc3 {[%clk 0:00:23.9]}
30... Qd6 {[%clk 0:01:11.2]} 31. Rb1 {[%clk 0:00:15.8]} 31... Rb8 {[%clk
0:01:04.8]} 32. Rdb2 {[%clk 0:00:14.2]} 32... Rb5 {[%clk 0:01:04.9]} 33. Qf6
{[%clk 0:00:14.1]} 33... Ra5# {[%clk 0:01:03.2]} 0-1

[Event "*** MasterClass Titled Tuesday Blitz"]
[Site "Chess.com"]
[Date "2017.07.04"]
[Round "2"]
[White "charlescandycampbell"]
[Black "aa175"]
[Result "1/2-1/2"]
[WhiteElo "2123"]
[BlackElo "1894"]
[TimeControl "180+2"]
[EndTime "13:22:07 PDT"]
[Termination "Game drawn by repetition"]

1. d4 {[%clk 0:03:01.9]} 1... Nf6 {[%clk 0:03:00.1]} 2. Nf3 {[%clk 0:03:02.7]}
2... d5 {[%clk 0:03:00.4]} 3. c4 {[%clk 0:03:03.6]} 3... c5 {[%clk 0:02:58.8]}
4. cxd5 {[%clk 0:03:04.3]} 4... cxd4 {[%clk 0:02:59.3]} 5. Qxd4 {[%clk
0:03:03.3]} 5... Qxd5 {[%clk 0:02:58.8]} 6. Nc3 {[%clk 0:03:03.9]} 6... Qxd4
{[%clk 0:02:57.5]} 7. Nxd4 {[%clk 0:03:05]} 7... a6 {[%clk 0:02:58]} 8. e4
{[%clk 0:03:01.8]} 8... Nc6 {[%clk 0:02:54.3]} 9. Nxc6 {[%clk 0:03:01.5]} 9...
bxc6 {[%clk 0:02:56.2]} 10. Bc4 {[%clk 0:02:58.4]} 10... g6 {[%clk 0:02:55.3]}
11. f3 {[%clk 0:02:57.4]} 11... Bg7 {[%clk 0:02:55.3]} 12. Be3 {[%clk
0:02:56.1]} 12... Nd7 {[%clk 0:02:43.1]} 13. O-O {[%clk 0:02:54.5]} 13... Rb8
{[%clk 0:02:43.7]} 14. Rab1 {[%clk 0:02:50.1]} 14... O-O {[%clk 0:02:40.3]} 15.
Rfd1 {[%clk 0:02:49.5]} 15... Nb6 {[%clk 0:02:35.5]} 16. b3 {[%clk 0:02:41.7]}
16... Bxc3 {[%clk 0:02:30.6]} 17. Rbc1 {[%clk 0:02:29.6]} 17... Nxc4 {[%clk
0:02:30.1]} 18. Rxc3 {[%clk 0:02:20.8]} 18... Nxe3 {[%clk 0:02:30.2]} 19. Rxe3
{[%clk 0:02:21.9]} 19... Be6 {[%clk 0:02:30.3]} 20. Rc3 {[%clk 0:02:22.1]} 20...
Rfd8 {[%clk 0:02:29.2]} 21. Rdc1 {[%clk 0:02:22.8]} 21... Rd2 {[%clk 0:02:26.8]}
22. R1c2 {[%clk 0:02:21]} 22... Rxc2 {[%clk 0:02:23.7]} 23. Rxc2 {[%clk
0:02:21.3]} 23... Rd8 {[%clk 0:02:23.5]} 24. Kf2 {[%clk 0:02:21.5]} 24... Kg7
{[%clk 0:02:22.8]} 25. Ke3 {[%clk 0:02:22.4]} 25... Rd6 {[%clk 0:02:19.4]} 26.
f4 {[%clk 0:02:19.9]} 26... Bd7 {[%clk 0:02:16.8]} 27. e5 {[%clk 0:02:18.7]}
27... Rd5 {[%clk 0:02:16.9]} 28. Rc4 {[%clk 0:02:17]} 28... Kf8 {[%clk
0:02:14.9]} 29. Ra4 {[%clk 0:02:16.7]} 29... a5 {[%clk 0:02:15.1]} 30. Rc4
{[%clk 0:02:17.7]} 30... Ke8 {[%clk 0:02:14]} 31. h3 {[%clk 0:02:18.7]} 31... h5
{[%clk 0:02:13.1]} 32. g4 {[%clk 0:02:18.1]} 32... hxg4 {[%clk 0:02:12.6]} 33.
hxg4 {[%clk 0:02:19.1]} 33... Kd8 {[%clk 0:02:13]} 34. Ke4 {[%clk 0:02:17.3]}
34... Kc7 {[%clk 0:02:12.5]} 35. f5 {[%clk 0:02:18]} 35... gxf5+ {[%clk
0:02:12.5]} 36. gxf5 {[%clk 0:02:19]} 36... e6 {[%clk 0:02:13.2]} 37. f6 {[%clk
0:02:16.6]} 37... Bc8 {[%clk 0:02:13.7]} 38. a3 {[%clk 0:02:13.5]} 38... Ba6
{[%clk 0:02:13.5]} 39. Rc3 {[%clk 0:02:14.6]} 39... Bf1 {[%clk 0:02:11]} 40. Rg3
{[%clk 0:02:11]} 40... Kb6 {[%clk 0:02:02.9]} 41. Rg7 {[%clk 0:02:11.3]} 41...
Bd3+ {[%clk 0:02:01.6]} 42. Ke3 {[%clk 0:02:10.5]} 42... Bg6 {[%clk 0:02:00.9]}
43. Kf4 {[%clk 0:02:11.5]} 43... Rd7 {[%clk 0:01:58.2]} 44. Kg5 {[%clk
0:02:10.8]} 44... Kc5 {[%clk 0:01:56.7]} 45. Rxg6 {[%clk 0:02:11.3]} 45... fxg6
{[%clk 0:01:57]} 46. Kxg6 {[%clk 0:02:11.7]} 46... Kd5 {[%clk 0:01:57.3]} 47. f7
{[%clk 0:02:12.7]} 47... Rxf7 {[%clk 0:01:56.9]} 48. Kxf7 {[%clk 0:02:13.9]}
48... Kxe5 {[%clk 0:01:58.3]} 49. Ke7 {[%clk 0:02:15]} 49... Kd5 {[%clk
0:01:59.2]} 50. Kd7 {[%clk 0:02:16.2]} 50... e5 {[%clk 0:01:59.9]} 51. b4 {[%clk
0:02:16.5]} 51... e4 {[%clk 0:02:01.8]} 52. bxa5 {[%clk 0:02:16.9]} 52... e3
{[%clk 0:02:02.6]} 53. a6 {[%clk 0:02:18]} 53... e2 {[%clk 0:02:03.4]} 54. a7
{[%clk 0:02:19.2]} 54... e1=Q {[%clk 0:02:04.3]} 55. a8=Q {[%clk 0:02:19.8]}
55... Qe6+ {[%clk 0:02:04.4]} 56. Kc7 {[%clk 0:02:20.8]} 56... Qe7+ {[%clk
0:02:02.9]} 57. Kb6 {[%clk 0:02:21]} 57... Qc5+ {[%clk 0:01:59.8]} 58. Kc7
{[%clk 0:02:21.5]} 58... Qe7+ {[%clk 0:01:53.3]} 59. Kb6 {[%clk 0:02:22.3]}
59... Qc5+ {[%clk 0:01:50.6]} 60. Kc7 {[%clk 0:02:23.2]} 60... Qe7+ {[%clk
0:01:48.3]} 61. Kb6 {[%clk 0:02:23.9]} 61... Qe3+ {[%clk 0:01:49.6]} 62. Kb7
{[%clk 0:02:21.7]} 62... Qe7+ {[%clk 0:01:25.5]} 63. Kb6 {[%clk 0:02:21.7]}
63... Qc5+ {[%clk 0:01:25.2]} 64. Kc7 {[%clk 0:02:22.7]} 64... Qe7+ {[%clk
0:01:10.7]} 65. Kb6 {[%clk 0:02:23.3]} 1/2-1/2

[Event "*** MasterClass Titled Tuesday Blitz"]
[Site "Chess.com"]
[Date "2017.07.04"]
[Round "2"]
[White "Yaacovn"]
[Black "ftorodent"]
[Result "1-0"]
[WhiteElo "2683"]
[BlackElo "2500"]
[TimeControl "180+2"]
[EndTime "13:22:09 PDT"]
[Termination "Yaacovn won by resignation"]

1. d4 {[%clk 0:03:00.6]} 1... d5 {[%clk 0:02:59.5]} 2. Nf3 {[%clk 0:03:01.7]}
2... Nf6 {[%clk 0:02:58.8]} 3. c4 {[%clk 0:03:02.4]} 3... e6 {[%clk 0:02:58.5]}
4. Nc3 {[%clk 0:03:03.1]} 4... Be7 {[%clk 0:02:58.6]} 5. Bg5 {[%clk 0:02:48.6]}
5... O-O {[%clk 0:02:58]} 6. e3 {[%clk 0:02:46]} 6... h6 {[%clk 0:02:57.9]} 7.
Bh4 {[%clk 0:02:46.6]} 7... b6 {[%clk 0:02:58.1]} 8. cxd5 {[%clk 0:02:40.7]}
8... Nxd5 {[%clk 0:02:47.5]} 9. Nxd5 {[%clk 0:02:41.5]} 9... exd5 {[%clk
0:02:46.6]} 10. Bxe7 {[%clk 0:02:41.9]} 10... Qxe7 {[%clk 0:02:47.1]} 11. Rc1
{[%clk 0:02:43.2]} 11... Be6 {[%clk 0:02:43.3]} 12. Be2 {[%clk 0:02:43.2]} 12...
c5 {[%clk 0:02:38.1]} 13. dxc5 {[%clk 0:02:44.2]} 13... bxc5 {[%clk 0:02:38.3]}
14. O-O {[%clk 0:02:45.6]} 14... Nd7 {[%clk 0:02:37.1]} 15. Qa4 {[%clk
0:02:46.1]} 15... Rfb8 {[%clk 0:02:24.7]} 16. b3 {[%clk 0:02:24.3]} 16... a5
{[%clk 0:01:56]} 17. Rfd1 {[%clk 0:01:50.2]} 17... Rb4 {[%clk 0:01:40]} 18. Qc6
{[%clk 0:01:37]} 18... Qd8 {[%clk 0:01:30.9]} 19. Qd6 {[%clk 0:01:32.3]} 19...
a4 {[%clk 0:01:17.7]} 20. bxa4 {[%clk 0:01:17.4]} 20... Rb6 {[%clk 0:01:17.4]}
21. Qf4 {[%clk 0:01:17.6]} 21... Rb4 {[%clk 0:01:17.3]} 22. Qd6 {[%clk
0:01:15.5]} 22... Rb6 {[%clk 0:01:10.2]} 23. Qf4 {[%clk 0:01:15.5]} 23... Rb4
{[%clk 0:00:59.3]} 24. Qg3 {[%clk 0:01:15.7]} 24... Raxa4 {[%clk 0:00:50.5]} 25.
Ne5 {[%clk 0:01:14.7]} 25... Nxe5 {[%clk 0:00:40.1]} 26. Qxe5 {[%clk 0:01:15.5]}
26... Rxa2 {[%clk 0:00:39.5]} 27. Bf3 {[%clk 0:01:15.5]} 27... Rbb2 {[%clk
0:00:29.2]} 28. Bxd5 {[%clk 0:01:09.6]} 28... Bxd5 {[%clk 0:00:29.2]} 29. Rxd5
{[%clk 0:01:10.1]} 29... Qg5 {[%clk 0:00:19.3]} 30. Qe8+ {[%clk 0:01:05.4]}
30... Kh7 {[%clk 0:00:17.6]} 31. Rxg5 {[%clk 0:01:06.2]} 31... hxg5 {[%clk
0:00:18]} 32. Qxf7 {[%clk 0:01:06.3]} 32... Rc2 {[%clk 0:00:17.3]} 33. Qf5+
{[%clk 0:01:05.4]} 33... Kg8 {[%clk 0:00:16.8]} 34. Qxc2 {[%clk 0:01:06]} 1-0

[Event "*** MasterClass Titled Tuesday Blitz"]
[Site "Chess.com"]
[Date "2017.07.04"]
[Round "2"]
[White "FairChess_on_YouTube"]
[Black "ChessQueen"]
[Result "1-0"]
[WhiteElo "2695"]
[BlackElo "2503"]
[TimeControl "180+2"]
[EndTime "13:22:16 PDT"]
[Termination "FairChess_on_YouTube won by resignation"]

1. d4 {[%clk 0:03:01.9]} 1... Nf6 {[%clk 0:03:00.9]} 2. Bg5 {[%clk 0:03:02.1]}
2... e6 {[%clk 0:03:01.7]} 3. Nd2 {[%clk 0:03:02.5]} 3... h6 {[%clk 0:02:43.9]}
4. Bh4 {[%clk 0:03:02.9]} 4... c5 {[%clk 0:02:37.6]} 5. e4 {[%clk 0:03:03.7]}
5... g5 {[%clk 0:02:23.5]} 6. Bg3 {[%clk 0:03:04]} 6... cxd4 {[%clk 0:02:24.7]}
7. e5 {[%clk 0:03:05.1]} 7... Ng8 {[%clk 0:02:14.2]} 8. h4 {[%clk 0:03:01.5]}
8... Nc6 {[%clk 0:02:01.4]} 9. hxg5 {[%clk 0:03:00.9]} 9... d6 {[%clk
0:02:01.1]} 10. Ngf3 {[%clk 0:02:55.1]} 10... dxe5 {[%clk 0:01:59.6]} 11. Nxe5
{[%clk 0:02:54.5]} 11... Bg7 {[%clk 0:01:47]} 12. Bb5 {[%clk 0:02:48.7]} 12...
Qd5 {[%clk 0:01:43.2]} 13. Qf3 {[%clk 0:02:25.5]} 13... Qxf3 {[%clk 0:01:31.8]}
14. Ndxf3 {[%clk 0:02:27.4]} 14... Bd7 {[%clk 0:01:23.2]} 15. Nxd7 {[%clk
0:02:26.1]} 15... Kxd7 {[%clk 0:01:24.2]} 16. O-O-O {[%clk 0:02:26.9]} 16... Ne7
{[%clk 0:01:08.2]} 17. Nxd4 {[%clk 0:02:23.7]} 17... Kc8 {[%clk 0:01:09.2]} 18.
Nf3 {[%clk 0:02:13.5]} 18... Nf5 {[%clk 0:01:02.9]} 19. Bf4 {[%clk 0:02:12.2]}
19... h5 {[%clk 0:00:42.2]} 20. c3 {[%clk 0:02:10.8]} 20... Nfe7 {[%clk
0:00:35.3]} 21. g3 {[%clk 0:02:02.1]} 21... a6 {[%clk 0:00:35.6]} 22. Bd3 {[%clk
0:02:01.4]} 22... Nd5 {[%clk 0:00:34.4]} 23. Be4 {[%clk 0:02:02.2]} 23... Nxf4
{[%clk 0:00:31.3]} 24. gxf4 {[%clk 0:02:02.9]} 24... Kc7 {[%clk 0:00:32.7]} 25.
Rh4 {[%clk 0:01:58.6]} 25... Ne7 {[%clk 0:00:32]} 26. Rdh1 {[%clk 0:01:47.4]}
26... Ng6 {[%clk 0:00:33.1]} 27. Bxg6 {[%clk 0:01:48.4]} 27... fxg6 {[%clk
0:00:34]} 28. Re1 {[%clk 0:01:50]} 28... Rae8 {[%clk 0:00:34.1]} 29. Re4 {[%clk
0:01:49.1]} 29... Rhf8 {[%clk 0:00:33.7]} 30. Kd2 {[%clk 0:01:49.2]} 30... Rf5
{[%clk 0:00:33.4]} 31. Ke2 {[%clk 0:01:48.3]} 31... Rb5 {[%clk 0:00:33.4]} 32.
b3 {[%clk 0:01:48.1]} 32... Ra5 {[%clk 0:00:33.2]} 33. a4 {[%clk 0:01:48.3]}
33... Rc5 {[%clk 0:00:34.1]} 34. c4 {[%clk 0:01:47.4]} 34... b5 {[%clk
0:00:34.6]} 35. axb5 {[%clk 0:01:47.9]} 35... axb5 {[%clk 0:00:35.9]} 36. Rh3
{[%clk 0:01:49.4]} 36... bxc4 {[%clk 0:00:36.3]} 37. bxc4 {[%clk 0:01:49.6]}
37... Rc6 {[%clk 0:00:19.5]} 38. Nh4 {[%clk 0:01:48.4]} 38... e5 {[%clk
0:00:19.5]} 39. f5 {[%clk 0:01:44.3]} 39... gxf5 {[%clk 0:00:18.2]} 40. Nxf5
{[%clk 0:01:46.2]} 40... Bf8 {[%clk 0:00:17.7]} 41. Rxh5 {[%clk 0:01:46.4]}
41... Bc5 {[%clk 0:00:18.2]} 42. Rh7+ {[%clk 0:01:37.4]} 42... Kb6 {[%clk
0:00:19.1]} 43. Rh6 {[%clk 0:01:38.3]} 43... Rf8 {[%clk 0:00:20]} 44. Rxe5
{[%clk 0:01:37.4]} 1-0

[Event "*** MasterClass Titled Tuesday Blitz"]
[Site "Chess.com"]
[Date "2017.07.04"]
[Round "2"]
[White "escher"]
[Black "improve_every_day"]
[Result "1-0"]
[WhiteElo "2039"]
[BlackElo "1956"]
[TimeControl "180+2"]
[EndTime "13:22:16 PDT"]
[Termination "escher won by checkmate"]

1. e4 {[%clk 0:03:02]} 1... c5 {[%clk 0:03:00.1]} 2. Nf3 {[%clk 0:03:02.8]} 2...
Nc6 {[%clk 0:03:01.1]} 3. d4 {[%clk 0:03:04]} 3... cxd4 {[%clk 0:03:03]} 4. Nxd4
{[%clk 0:03:05.8]} 4... g6 {[%clk 0:03:04.1]} 5. Nc3 {[%clk 0:02:58.5]} 5... Bg7
{[%clk 0:03:05.1]} 6. Be3 {[%clk 0:02:59.5]} 6... Nf6 {[%clk 0:03:06.3]} 7. Bc4
{[%clk 0:02:57.9]} 7... O-O {[%clk 0:03:07.1]} 8. Qd2 {[%clk 0:02:54.9]} 8...
Nxe4 {[%clk 0:02:58.4]} 9. Nxe4 {[%clk 0:02:55.4]} 9... d5 {[%clk 0:02:59.4]}
10. Nxc6 {[%clk 0:02:39.5]} 10... bxc6 {[%clk 0:02:59.1]} 11. O-O-O {[%clk
0:02:40.3]} 11... Qc7 {[%clk 0:02:34.2]} 12. Bf4 {[%clk 0:02:09.6]} 12... Qb6
{[%clk 0:02:26.7]} 13. Nc3 {[%clk 0:01:55.8]} 13... dxc4 {[%clk 0:02:18]} 14.
Rhe1 {[%clk 0:01:56.2]} 14... Be6 {[%clk 0:02:04.4]} 15. Bg5 {[%clk 0:01:32.1]}
15... Rab8 {[%clk 0:02:01.9]} 16. b3 {[%clk 0:01:12.4]} 16... Qb4 {[%clk
0:02:00.9]} 17. Nb1 {[%clk 0:01:02.9]} 17... Qxd2+ {[%clk 0:01:21.4]} 18. Rxd2
{[%clk 0:01:00.3]} 18... cxb3 {[%clk 0:01:19]} 19. axb3 {[%clk 0:00:46.5]} 19...
Rb5 {[%clk 0:01:12.8]} 20. Bxe7 {[%clk 0:00:46.5]} 20... Re8 {[%clk 0:01:12.4]}
21. Ba3 {[%clk 0:00:44.8]} 21... Bh6 {[%clk 0:01:12.1]} 22. Nc3 {[%clk
0:00:39.6]} 22... Rb7 {[%clk 0:01:04.2]} 23. Re3 {[%clk 0:00:31.1]} 23... Bxe3
{[%clk 0:01:00.5]} 24. fxe3 {[%clk 0:00:31.9]} 24... Bd5 {[%clk 0:00:57.5]} 25.
Nxd5 {[%clk 0:00:30.1]} 25... cxd5 {[%clk 0:00:58.2]} 26. Rxd5 {[%clk
0:00:28.1]} 26... f5 {[%clk 0:00:52.7]} 27. Kd2 {[%clk 0:00:27.5]} 27... Kf7
{[%clk 0:00:51.7]} 28. Bc5 {[%clk 0:00:26.1]} 28... Ke6 {[%clk 0:00:51]} 29.
Rd6+ {[%clk 0:00:26.1]} 29... Ke5 {[%clk 0:00:49.6]} 30. Ra6 {[%clk 0:00:21.6]}
30... Rd8+ {[%clk 0:00:36.3]} 31. Bd4+ {[%clk 0:00:21.5]} 31... Ke4 {[%clk
0:00:34.7]} 32. c4 {[%clk 0:00:19.2]} 32... Rdd7 {[%clk 0:00:32.3]} 33. Re6#
{[%clk 0:00:19.5]} 1-0

[Event "*** MasterClass Titled Tuesday Blitz"]
[Site "Chess.com"]
[Date "2017.07.04"]
[Round "2"]
[White "Blitzking4444"]
[Black "hypert"]
[Result "0-1"]
[WhiteElo "2235"]
[BlackElo "2333"]
[TimeControl "180+2"]
[EndTime "13:22:18 PDT"]
[Termination "hypert won on time"]

1. e4 {[%clk 0:03:01.9]} 1... c5 {[%clk 0:03:00.2]} 2. Nf3 {[%clk 0:03:02.7]}
2... Nc6 {[%clk 0:03:01.7]} 3. Bb5 {[%clk 0:03:03]} 3... e6 {[%clk 0:03:02.7]}
4. O-O {[%clk 0:03:02.1]} 4... Qc7 {[%clk 0:03:03.2]} 5. c3 {[%clk 0:02:59.3]}
5... Nge7 {[%clk 0:03:02.3]} 6. d4 {[%clk 0:02:54.4]} 6... cxd4 {[%clk
0:03:01.7]} 7. cxd4 {[%clk 0:02:55.4]} 7... d5 {[%clk 0:03:02.9]} 8. e5 {[%clk
0:02:49.1]} 8... Bd7 {[%clk 0:03:03.5]} 9. Nc3 {[%clk 0:02:42.5]} 9... Nf5
{[%clk 0:02:59.5]} 10. g4 {[%clk 0:02:16.7]} 10... Nh6 {[%clk 0:03:00]} 11. h3
{[%clk 0:02:13.3]} 11... Be7 {[%clk 0:02:59.3]} 12. Be3 {[%clk 0:02:08.3]} 12...
O-O {[%clk 0:02:58.8]} 13. Qd2 {[%clk 0:02:07.1]} 13... f5 {[%clk 0:02:52]} 14.
exf6 {[%clk 0:02:00.4]} 14... Rxf6 {[%clk 0:02:45.9]} 15. Ne5 {[%clk 0:01:32.6]}
15... Nf7 {[%clk 0:02:16.2]} 16. f4 {[%clk 0:01:17.1]} 16... Nfxe5 {[%clk
0:02:06.9]} 17. dxe5 {[%clk 0:01:10]} 17... Rf7 {[%clk 0:02:00.4]} 18. Bxc6
{[%clk 0:00:50.8]} 18... bxc6 {[%clk 0:01:49.3]} 19. Rac1 {[%clk 0:00:42.2]}
19... c5 {[%clk 0:01:50.5]} 20. Ne2 {[%clk 0:00:22.4]} 20... Qb6 {[%clk
0:01:39.8]} 21. f5 {[%clk 0:00:15.2]} 21... d4 {[%clk 0:01:35.3]} 22. Bg5 {[%clk
0:00:15.1]} 22... Bxg5 {[%clk 0:01:15.9]} 23. Qxg5 {[%clk 0:00:15.6]} 23... Qxb2
{[%clk 0:01:00.5]} 24. Nf4 {[%clk 0:00:13.6]} 24... Raf8 {[%clk 0:00:49.3]} 25.
fxe6 {[%clk 0:00:05.6]} 25... Rxf4 {[%clk 0:00:49.9]} 26. exd7 {[%clk
0:00:02.5]} 26... Rf2 {[%clk 0:00:31.5]} 0-1